[Event "Titled Tuesday Blitz May 9 Late 2023"]
[White "Moral Garcia, Serafin"]
[Black "micke12a"]
[WhiteFideId "2201925"]
[WhiteElo "2274"]
[BlackElo "2372"]
[Result "1-0"]
[Round "11"]
[TimeControl "180+2"]
[Date "2023.05.09"]
[WhiteClock "0:00:59"]
[BlackClock "0:00:00"]

1. e4 {[%clk 0:03:00]}  c5 {[%clk 0:02:59]} 2. Nf3 {[%clk 0:03:00]}  d6 {[%clk 0:03:00]} 3. d4 {[%clk 0:02:59]}  cxd4 {[%clk 0:03:01]} 4. Nxd4 {[%clk 0:03:00]}  Nf6 {[%clk 0:03:01]} 5. Nc3 {[%clk 0:03:00]}  g6 {[%clk 0:03:02]} 6. Be3 {[%clk 0:03:01]}  Bg7 {[%clk 0:03:02]} 7. f3 {[%clk 0:03:01]}  O-O {[%clk 0:03:03]} 8. Qd2 {[%clk 0:03:02]}  Nc6 {[%clk 0:03:03]} 9. O-O-O {[%clk 0:03:02]}  Bd7 {[%clk 0:03:04]} 10. Kb1 {[%clk 0:03:02]}  Rc8 {[%clk 0:03:04]} 11. g4 {[%clk 0:03:02]}  Ne5 {[%clk 0:03:04]} 12. Be2 {[%clk 0:03:02]}  Qa5 {[%clk 0:03:03]} 13. h4 {[%clk 0:02:57]}  Rxc3 {[%clk 0:03:03]} 14. Qxc3 {[%clk 0:02:57]}  Qxc3 {[%clk 0:03:03]} 15. bxc3 {[%clk 0:02:58]}  Rc8 {[%clk 0:03:03]} 16. Kb2 {[%clk 0:02:58]}  Be8 {[%clk 0:03:00]} 17. Nb3 {[%clk 0:02:55]}  Nfd7 {[%clk 0:02:56]} 18. Bd4 {[%clk 0:02:54]}  b6 {[%clk 0:02:43]} 19. f4 {[%clk 0:02:52]}  Nc6 {[%clk 0:02:36]} 20. Bxg7 {[%clk 0:02:50]}  Kxg7 {[%clk 0:02:37]} 21. h5 {[%clk 0:02:46]}  a5 {[%clk 0:02:32]} 22. Bb5 {[%clk 0:02:41]}  Nf6 {[%clk 0:02:27]} 23. hxg6 {[%clk 0:02:35]}  hxg6 {[%clk 0:02:25]} 24. g5 {[%clk 0:02:35]}  Nxe4 {[%clk 0:02:25]} 25. Rh2 {[%clk 0:02:32]}  f6 {[%clk 0:02:03]} 26. Bd3 {[%clk 0:02:31]}  d5 {[%clk 0:02:00]} 27. Bxe4 {[%clk 0:02:31]}  dxe4 {[%clk 0:02:00]} 28. Rdh1 {[%clk 0:02:31]}  fxg5 {[%clk 0:01:57]} 29. fxg5 {[%clk 0:02:30]}  Kf7 {[%clk 0:01:53]} 30. Nd2 {[%clk 0:02:24]}  e3 {[%clk 0:01:51]} 31. Ne4 {[%clk 0:02:20]}  Ne5 {[%clk 0:01:51]} 32. Rf1+ {[%clk 0:02:17]}  Ke6 {[%clk 0:01:49]} 33. Ng3 {[%clk 0:02:16]}  Nc4+ {[%clk 0:01:44]} 34. Ka1 {[%clk 0:02:16]}  Nd2 {[%clk 0:01:42]} 35. Re1 {[%clk 0:02:16]}  Nc4 {[%clk 0:01:34]} 36. Nf1 {[%clk 0:02:14]}  Bc6 {[%clk 0:00:56]} 37. Nxe3 {[%clk 0:02:12]}  Nxe3 {[%clk 0:00:57]} 38. Rxe3+ {[%clk 0:02:12]}  Kf5 {[%clk 0:00:57]} 39. Rxe7 {[%clk 0:02:08]}  Kxg5 {[%clk 0:00:57]} 40. Kb2 {[%clk 0:02:08]}  Kf6 {[%clk 0:00:54]} 41. Ree2 {[%clk 0:02:04]}  g5 {[%clk 0:00:54]} 42. Rhf2+ {[%clk 0:02:05]}  Kg6 {[%clk 0:00:53]} 43. Re6+ {[%clk 0:02:02]}  Kh5 {[%clk 0:00:53]} 44. Rff6 {[%clk 0:02:03]}  Bd5 {[%clk 0:00:49]} 45. Rxb6 {[%clk 0:02:03]}  a4 {[%clk 0:00:37]} 46. a3 {[%clk 0:02:01]}  Kh4 {[%clk 0:00:24]} 47. Rb4+ {[%clk 0:01:58]}  g4 {[%clk 0:00:24]} 48. Rg6 {[%clk 0:01:57]}  Bf3 {[%clk 0:00:23]} 49. Rxa4 {[%clk 0:01:57]}  Rb8+ {[%clk 0:00:20]} 50. Rb4 {[%clk 0:01:57]}  Rd8 {[%clk 0:00:21]} 51. a4 {[%clk 0:01:55]}  Kh3 {[%clk 0:00:21]} 52. Rf4 {[%clk 0:01:53]}  Ra8 {[%clk 0:00:19]} 53. Ka3 {[%clk 0:01:53]}  Kg3 {[%clk 0:00:19]} 54. Rb4 {[%clk 0:01:45]}  Rc8 {[%clk 0:00:19]} 55. c4 {[%clk 0:01:45]}  Kf2 {[%clk 0:00:19]} 56. c3 {[%clk 0:01:39]}  g3 {[%clk 0:00:19]} 57. Rb2+ {[%clk 0:01:39]}  Be2 {[%clk 0:00:19]} 58. Rxe2+ {[%clk 0:01:38]}  Kxe2 {[%clk 0:00:19]} 59. Rxg3 {[%clk 0:01:38]}  Rxc4 {[%clk 0:00:19]} 60. Kb3 {[%clk 0:01:39]}  Rc8 {[%clk 0:00:19]} 61. c4 {[%clk 0:01:38]}  Kf2 {[%clk 0:00:19]} 62. Rc3 {[%clk 0:01:38]}  Rb8+ {[%clk 0:00:19]} 63. Ka3 {[%clk 0:01:38]}  Ke2 {[%clk 0:00:19]} 64. c5 {[%clk 0:01:32]}  Kd2 {[%clk 0:00:20]} 65. Rb3 {[%clk 0:01:33]}  Rc8 {[%clk 0:00:20]} 66. Rb5 {[%clk 0:01:33]}  Kd3 {[%clk 0:00:20]} 67. Kb4 {[%clk 0:01:33]}  Kd4 {[%clk 0:00:21]} 68. a5 {[%clk 0:01:32]}  Kd5 {[%clk 0:00:20]} 69. a6 {[%clk 0:01:28]}  Rh8 {[%clk 0:00:20]} 70. a7 {[%clk 0:01:26]}  Ra8 {[%clk 0:00:18]} 71. Rb7 {[%clk 0:01:26]}  Kc6 {[%clk 0:00:18]} 72. Rh7 {[%clk 0:01:26]}  Rg8 {[%clk 0:00:19]} 73. Rh1 {[%clk 0:01:14]}  Ra8 {[%clk 0:00:18]} 74. Ra1 {[%clk 0:01:13]}  Kc7 {[%clk 0:00:15]} 75. Kb5 {[%clk 0:01:13]}  Kb7 {[%clk 0:00:16]} 76. c6+ {[%clk 0:01:13]}  Kc7 {[%clk 0:00:16]} 77. Kc5 {[%clk 0:01:09]}  Rh8 {[%clk 0:00:15]} 78. Rb1 {[%clk 0:01:03]}  Rh5+ {[%clk 0:00:09]} 79. Kb4 {[%clk 0:01:02]}  Rh8 {[%clk 0:00:09]} 80. Ka5 {[%clk 0:01:01]}  Kxc6 {[%clk 0:00:06]} 81. Ka6 {[%clk 0:01:00]}  Rh2 {[%clk 0:00:03]} 82. Rb6+ {[%clk 0:01:00]}  Kc7 {[%clk 0:00:03]} 83. Rb7+ {[%clk 0:00:59]}  Kc6 {[%clk 0:00:03]} 84. Rb6+ {[%clk 0:00:58]}  Kc7 {[%clk 0:00:04]} 85. Rc6+ {[%clk 0:00:58]}  Kd7 {[%clk 0:00:02]} 86. Rc5 {[%clk 0:00:59]}  Ra2+ {[%clk 0:00:02]} 87. Ra5 {[%clk 0:00:59]}  Rxa5+ {[%clk 0:00:00]} 88. Kxa5 {[%clk 0:00:59]} 1-0


[Site "https://www.chess.com"]

[Event "Titled Tuesday Blitz May 9 Late 2023"]
[White "Wizard_of_Odds"]
[Black "TheKnightOfBosnia"]
[WhiteElo "2354"]
[BlackElo "2460"]
[Result "0-1"]
[Round "11"]
[TimeControl "180+2"]
[Date "2023.05.09"]
[WhiteClock "0:00:00"]
[BlackClock "0:00:15"]

1. c4 {[%clk 0:02:58]}  Nf6 {[%clk 0:02:59]} 2. Nf3 {[%clk 0:02:57]}  e6 {[%clk 0:02:59]} 3. e3 {[%clk 0:02:56]}  d5 {[%clk 0:02:59]} 4. b3 {[%clk 0:02:54]}  Nbd7 {[%clk 0:02:57]} 5. Bb2 {[%clk 0:02:53]}  Be7 {[%clk 0:02:56]} 6. Be2 {[%clk 0:02:52]}  O-O {[%clk 0:02:56]} 7. O-O {[%clk 0:02:53]}  c5 {[%clk 0:02:56]} 8. cxd5 {[%clk 0:02:50]}  Nxd5 {[%clk 0:02:53]} 9. Nc3 {[%clk 0:02:48]}  Nxc3 {[%clk 0:02:50]} 10. Bxc3 {[%clk 0:02:44]}  b6 {[%clk 0:02:50]} 11. Ne5 {[%clk 0:02:39]}  Bb7 {[%clk 0:02:46]} 12. Bf3 {[%clk 0:02:37]}  Bxf3 {[%clk 0:02:37]} 13. Nxf3 {[%clk 0:02:17]}  Rc8 {[%clk 0:02:29]} 14. Rc1 {[%clk 0:02:16]}  Bf6 {[%clk 0:02:28]} 15. Qe2 {[%clk 0:02:11]}  Qc7 {[%clk 0:02:16]} 16. g3 {[%clk 0:02:05]}  Qb7 {[%clk 0:02:16]} 17. e4 {[%clk 0:02:01]}  Bxc3 {[%clk 0:02:09]} 18. dxc3 {[%clk 0:01:59]}  Rfd8 {[%clk 0:02:05]} 19. Rcd1 {[%clk 0:01:58]}  Nf6 {[%clk 0:02:04]} 20. e5 {[%clk 0:01:44]}  Nd5 {[%clk 0:02:03]} 21. c4 {[%clk 0:01:41]}  Nb4 {[%clk 0:02:01]} 22. Rxd8+ {[%clk 0:01:40]}  Rxd8 {[%clk 0:02:01]} 23. Rd1 {[%clk 0:01:36]}  Rxd1+ {[%clk 0:01:59]} 24. Qxd1 {[%clk 0:01:37]}  h6 {[%clk 0:01:59]} 25. a3 {[%clk 0:01:33]}  Nc2 {[%clk 0:01:57]} 26. Qd3 {[%clk 0:01:06]}  Nxa3 {[%clk 0:01:51]} 27. Nd2 {[%clk 0:01:01]}  Qc7 {[%clk 0:01:44]} 28. f4 {[%clk 0:00:54]}  a6 {[%clk 0:01:39]} 29. Ne4 {[%clk 0:00:52]}  b5 {[%clk 0:01:39]} 30. cxb5 {[%clk 0:00:46]}  axb5 {[%clk 0:01:30]} 31. Qc3 {[%clk 0:00:33]}  c4 {[%clk 0:01:30]} 32. Nd6 {[%clk 0:00:23]}  Qb6+ {[%clk 0:01:28]} 33. Kg2 {[%clk 0:00:21]}  Qc6+ {[%clk 0:01:15]} 34. Kh3 {[%clk 0:00:19]}  Qd5 {[%clk 0:01:04]} 35. Qa5 {[%clk 0:00:16]}  Nc2 {[%clk 0:00:53]} 36. Qd8+ {[%clk 0:00:15]}  Kh7 {[%clk 0:00:53]} 37. bxc4 {[%clk 0:00:15]}  bxc4 {[%clk 0:00:52]} 38. Qc7 {[%clk 0:00:14]}  Ne3 {[%clk 0:00:50]} 39. Qb7 {[%clk 0:00:05]}  Qxb7 {[%clk 0:00:48]} 40. Nxb7 {[%clk 0:00:06]}  c3 {[%clk 0:00:47]} 41. Nc5 {[%clk 0:00:06]}  c2 {[%clk 0:00:42]} 42. Nd3 {[%clk 0:00:06]}  h5 {[%clk 0:00:34]} 43. Nc1 {[%clk 0:00:04]}  Kg6 {[%clk 0:00:34]} 44. Kh4 {[%clk 0:00:04]}  Nf5+ {[%clk 0:00:26]} 45. Kh3 {[%clk 0:00:04]}  Nd4 {[%clk 0:00:27]} 46. Kg2 {[%clk 0:00:02]}  Kf5 {[%clk 0:00:27]} 47. Kf2 {[%clk 0:00:01]}  Ke4 {[%clk 0:00:27]} 48. h3 {[%clk 0:00:01]}  g6 {[%clk 0:00:27]} 49. h4 {[%clk 0:00:02]}  Nf5 {[%clk 0:00:25]} 50. Ne2 {[%clk 0:00:01]}  Kd3 {[%clk 0:00:25]} 51. Nc1+ {[%clk 0:00:02]}  Kd2 {[%clk 0:00:25]} 52. Nb3+ {[%clk 0:00:01]}  Kd1 {[%clk 0:00:26]} 53. Kf3 {[%clk 0:00:01]}  c1=Q {[%clk 0:00:25]} 54. Nxc1 {[%clk 0:00:02]}  Kxc1 {[%clk 0:00:26]} 55. g4 {[%clk 0:00:02]}  hxg4+ {[%clk 0:00:24]} 56. Kxg4 {[%clk 0:00:03]}  Kd2 {[%clk 0:00:24]} 57. Kg5 {[%clk 0:00:04]}  Ke3 {[%clk 0:00:14]} 58. Kf6 {[%clk 0:00:03]}  Kxf4 {[%clk 0:00:13]} 59. h5 {[%clk 0:00:03]}  gxh5 {[%clk 0:00:13]} 60. Kxf7 {[%clk 0:00:04]}  Nd4 {[%clk 0:00:14]} 61. Kg6 {[%clk 0:00:00]}  h4 {[%clk 0:00:15]} 0-1


[Site "https://www.chess.com"]

[Event "Titled Tuesday Blitz May 9 Late 2023"]
[White "KorolDimitriy75"]
[Black "Al-Saffar, Araz Basim Mohammed S"]
[BlackFideId "4801040"]
[WhiteElo "2456"]
[BlackElo "2304"]
[Result "0-1"]
[Round "11"]
[TimeControl "180+2"]
[Date "2023.05.09"]
[WhiteClock "0:00:03"]
[BlackClock "0:00:10"]

1. d4 {[%clk 0:03:00]}  d5 {[%clk 0:02:58]} 2. c4 {[%clk 0:03:01]}  e6 {[%clk 0:02:59]} 3. Nc3 {[%clk 0:03:01]}  a6 {[%clk 0:02:58]} 4. e3 {[%clk 0:02:58]}  Nf6 {[%clk 0:02:51]} 5. Nf3 {[%clk 0:02:58]}  Be7 {[%clk 0:02:45]} 6. Bd3 {[%clk 0:02:57]}  O-O {[%clk 0:02:44]} 7. O-O {[%clk 0:02:56]}  dxc4 {[%clk 0:02:42]} 8. Bxc4 {[%clk 0:02:57]}  b5 {[%clk 0:02:41]} 9. Bb3 {[%clk 0:02:57]}  Bb7 {[%clk 0:02:41]} 10. Qe2 {[%clk 0:02:56]}  c5 {[%clk 0:02:41]} 11. Rd1 {[%clk 0:02:56]}  Nbd7 {[%clk 0:02:30]} 12. e4 {[%clk 0:02:52]}  b4 {[%clk 0:02:26]} 13. e5 {[%clk 0:02:47]}  bxc3 {[%clk 0:02:09]} 14. exf6 {[%clk 0:02:47]}  Nxf6 {[%clk 0:02:08]} 15. bxc3 {[%clk 0:02:46]}  cxd4 {[%clk 0:02:08]} 16. cxd4 {[%clk 0:02:38]}  Qb6 {[%clk 0:01:58]} 17. Bg5 {[%clk 0:02:34]}  h6 {[%clk 0:01:56]} 18. Bh4 {[%clk 0:02:34]}  a5 {[%clk 0:01:50]} 19. Rab1 {[%clk 0:02:28]}  Ba6 {[%clk 0:01:27]} 20. Qe1 {[%clk 0:02:11]}  Bb4 {[%clk 0:01:24]} 21. Qe5 {[%clk 0:02:03]}  Bd6 {[%clk 0:01:20]} 22. Qe1 {[%clk 0:02:00]}  Qc7 {[%clk 0:00:59]} 23. Rbc1 {[%clk 0:01:51]}  Qb7 {[%clk 0:00:59]} 24. Bxf6 {[%clk 0:01:18]}  gxf6 {[%clk 0:01:00]} 25. Qe3 {[%clk 0:01:18]}  Kg7 {[%clk 0:00:57]} 26. d5 {[%clk 0:01:18]}  a4 {[%clk 0:00:32]} 27. Bxa4 {[%clk 0:00:55]}  Qb4 {[%clk 0:00:21]} 28. Bb3 {[%clk 0:00:51]}  Bf4 {[%clk 0:00:20]} 29. Qd4 {[%clk 0:00:38]}  Qxd4 {[%clk 0:00:20]} 30. Nxd4 {[%clk 0:00:39]}  Bxc1 {[%clk 0:00:20]} 31. Rxc1 {[%clk 0:00:38]}  Rac8 {[%clk 0:00:20]} 32. Re1 {[%clk 0:00:33]}  exd5 {[%clk 0:00:20]} 33. Nf5+ {[%clk 0:00:30]}  Kh8 {[%clk 0:00:20]} 34. Bxd5 {[%clk 0:00:22]}  Rfe8 {[%clk 0:00:21]} 35. Ne3 {[%clk 0:00:15]}  f5 {[%clk 0:00:17]} 36. g3 {[%clk 0:00:15]}  f4 {[%clk 0:00:16]} 37. gxf4 {[%clk 0:00:15]}  f6 {[%clk 0:00:15]} 38. Kg2 {[%clk 0:00:13]}  Re7 {[%clk 0:00:15]} 39. Kf3 {[%clk 0:00:12]}  Rd8 {[%clk 0:00:14]} 40. Be4 {[%clk 0:00:08]}  Rd4 {[%clk 0:00:13]} 41. Bf5 {[%clk 0:00:08]}  Bb7+ {[%clk 0:00:12]} 42. Kg3 {[%clk 0:00:08]}  Rd5 {[%clk 0:00:10]} 43. h4 {[%clk 0:00:06]}  Rxf5 {[%clk 0:00:10]} 44. Rb1 {[%clk 0:00:05]}  Rg7+ {[%clk 0:00:10]} 45. Kh2 {[%clk 0:00:04]}  Rxf4 {[%clk 0:00:10]} 46. Rb2 {[%clk 0:00:03]}  Rxh4# {[%clk 0:00:10]} 0-1


[Site "https://www.chess.com"]

[Event "Titled Tuesday Blitz May 9 Late 2023"]
[White "Vega Gutierrez, Sabrina"]
[Black "Chirivi C, Jenny Astrid"]
[WhiteFideId "2219026"]
[BlackFideId "4403061"]
[WhiteElo "2209"]
[BlackElo "2019"]
[Result "1-0"]
[Round "11"]
[TimeControl "180+2"]
[Date "2023.05.09"]
[WhiteClock "0:00:34"]
[BlackClock "0:00:50"]

1. e4 {[%clk 0:03:00]}  c5 {[%clk 0:02:56]} 2. Nf3 {[%clk 0:03:01]}  e6 {[%clk 0:02:53]} 3. d4 {[%clk 0:03:01]}  cxd4 {[%clk 0:02:51]} 4. Nxd4 {[%clk 0:03:02]}  a6 {[%clk 0:02:51]} 5. Bd3 {[%clk 0:02:59]}  Qc7 {[%clk 0:02:50]} 6. f4 {[%clk 0:02:52]}  b5 {[%clk 0:02:49]} 7. a4 {[%clk 0:02:47]}  b4 {[%clk 0:02:48]} 8. O-O {[%clk 0:02:21]}  Bc5 {[%clk 0:02:44]} 9. Be3 {[%clk 0:02:17]}  Nc6 {[%clk 0:02:44]} 10. c3 {[%clk 0:02:15]}  bxc3 {[%clk 0:02:44]} 11. bxc3 {[%clk 0:02:15]}  Nge7 {[%clk 0:02:39]} 12. Kh1 {[%clk 0:02:14]}  Nxd4 {[%clk 0:02:38]} 13. cxd4 {[%clk 0:02:14]}  Ba7 {[%clk 0:02:37]} 14. Nd2 {[%clk 0:02:07]}  O-O {[%clk 0:02:33]} 15. Rc1 {[%clk 0:02:04]}  Qd8 {[%clk 0:02:26]} 16. f5 {[%clk 0:01:58]}  exf5 {[%clk 0:02:23]} 17. exf5 {[%clk 0:00:36]}  Nd5 {[%clk 0:02:22]} 18. Bg1 {[%clk 0:00:36]}  Bb7 {[%clk 0:02:18]} 19. Ne4 {[%clk 0:00:36]}  Bc6 {[%clk 0:02:15]} 20. f6 {[%clk 0:00:36]}  g6 {[%clk 0:02:08]} 21. Qd2 {[%clk 0:00:35]}  Kh8 {[%clk 0:01:57]} 22. Qh6 {[%clk 0:00:35]}  Nxf6 {[%clk 0:00:50]} 23. Nxf6 {[%clk 0:00:34]} 1-0


[Site "https://www.chess.com"]

[Event "Titled Tuesday Blitz May 9 Late 2023"]
[White "Bashkansky, Ethan"]
[Black "Jonkman, Harmen"]
[WhiteFideId "2071533"]
[BlackFideId "1002708"]
[WhiteElo "2346"]
[BlackElo "2368"]
[Result "0-1"]
[Round "11"]
[TimeControl "180+2"]
[Date "2023.05.09"]
[WhiteClock "0:00:07"]
[BlackClock "0:00:23"]

1. d4 {[%clk 0:03:00]}  d5 {[%clk 0:02:59]} 2. c4 {[%clk 0:03:00]}  e6 {[%clk 0:02:59]} 3. Nc3 {[%clk 0:03:00]}  Nf6 {[%clk 0:02:58]} 4. cxd5 {[%clk 0:03:01]}  exd5 {[%clk 0:02:58]} 5. Bg5 {[%clk 0:03:01]}  c6 {[%clk 0:02:53]} 6. e3 {[%clk 0:03:02]}  Be7 {[%clk 0:02:52]} 7. Bd3 {[%clk 0:03:02]}  h6 {[%clk 0:02:51]} 8. Bh4 {[%clk 0:03:02]}  Nbd7 {[%clk 0:02:47]} 9. Nf3 {[%clk 0:02:59]}  Nf8 {[%clk 0:02:47]} 10. Qc2 {[%clk 0:02:58]}  Ne6 {[%clk 0:02:47]} 11. O-O {[%clk 0:02:58]}  Nh5 {[%clk 0:02:46]} 12. Bxe7 {[%clk 0:02:49]}  Qxe7 {[%clk 0:02:46]} 13. Ne5 {[%clk 0:02:44]}  O-O {[%clk 0:02:40]} 14. Ne2 {[%clk 0:02:30]}  c5 {[%clk 0:02:36]} 15. dxc5 {[%clk 0:02:20]}  Nxc5 {[%clk 0:02:35]} 16. Nf3 {[%clk 0:02:08]}  Nxd3 {[%clk 0:02:33]} 17. Qxd3 {[%clk 0:02:09]}  Be6 {[%clk 0:02:31]} 18. Rac1 {[%clk 0:02:07]}  Rac8 {[%clk 0:02:28]} 19. a3 {[%clk 0:02:03]}  Nf6 {[%clk 0:02:25]} 20. Nfd4 {[%clk 0:01:57]}  Ne4 {[%clk 0:02:24]} 21. Nf4 {[%clk 0:01:54]}  a6 {[%clk 0:02:17]} 22. Ndxe6 {[%clk 0:01:53]}  fxe6 {[%clk 0:02:17]} 23. Ng6 {[%clk 0:01:47]}  Qf6 {[%clk 0:02:06]} 24. Nxf8 {[%clk 0:01:47]}  Rxc1 {[%clk 0:02:05]} 25. Rxc1 {[%clk 0:01:39]}  Qxf2+ {[%clk 0:02:04]} 26. Kh1 {[%clk 0:01:38]}  Qxf8 {[%clk 0:01:47]} 27. Qc2 {[%clk 0:01:34]}  Kh7 {[%clk 0:01:44]} 28. Kg1 {[%clk 0:01:29]}  Qf6 {[%clk 0:01:41]} 29. Rf1 {[%clk 0:01:25]}  Qg5 {[%clk 0:01:40]} 30. Qe2 {[%clk 0:01:22]}  Qe5 {[%clk 0:01:39]} 31. g3 {[%clk 0:01:15]}  b5 {[%clk 0:01:38]} 32. Kg2 {[%clk 0:01:11]}  Ng5 {[%clk 0:01:29]} 33. Rf4 {[%clk 0:01:07]}  a5 {[%clk 0:01:24]} 34. Qc2+ {[%clk 0:01:00]}  Kg8 {[%clk 0:01:22]} 35. Qc8+ {[%clk 0:00:59]}  Kh7 {[%clk 0:01:22]} 36. Qc3 {[%clk 0:00:56]}  Qd6 {[%clk 0:01:17]} 37. Qxa5 {[%clk 0:00:44]}  e5 {[%clk 0:01:10]} 38. Rf5 {[%clk 0:00:38]}  Qe6 {[%clk 0:01:05]} 39. Rxg5 {[%clk 0:00:37]}  hxg5 {[%clk 0:01:04]} 40. Qxb5 {[%clk 0:00:38]}  g4 {[%clk 0:00:56]} 41. Qd3+ {[%clk 0:00:38]}  Kh6 {[%clk 0:00:57]} 42. b4 {[%clk 0:00:36]}  Qc6 {[%clk 0:00:54]} 43. Qe2 {[%clk 0:00:27]}  Kg5 {[%clk 0:00:53]} 44. h4+ {[%clk 0:00:24]}  Kh5 {[%clk 0:00:50]} 45. Kf2 {[%clk 0:00:23]}  Qc3 {[%clk 0:00:47]} 46. b5 {[%clk 0:00:20]}  Qxa3 {[%clk 0:00:40]} 47. Qc2 {[%clk 0:00:21]}  g6 {[%clk 0:00:33]} 48. b6 {[%clk 0:00:18]}  d4 {[%clk 0:00:29]} 49. exd4 {[%clk 0:00:17]}  exd4 {[%clk 0:00:29]} 50. Qd2 {[%clk 0:00:10]}  Qf3+ {[%clk 0:00:28]} 51. Ke1 {[%clk 0:00:10]}  Qxg3+ {[%clk 0:00:28]} 52. Kd1 {[%clk 0:00:10]}  Qf3+ {[%clk 0:00:24]} 53. Ke1 {[%clk 0:00:10]}  Qe4+ {[%clk 0:00:23]} 54. Qe2 {[%clk 0:00:09]}  Qb1+ {[%clk 0:00:23]} 55. Qd1 {[%clk 0:00:08]}  Qxb6 {[%clk 0:00:23]} 56. Qd2 {[%clk 0:00:07]}  Qe6+ {[%clk 0:00:23]} 57. Kd1 {[%clk 0:00:07]}  Qb3+ {[%clk 0:00:23]} 58. Ke1 {[%clk 0:00:07]}  Qc3 {[%clk 0:00:23]} 59. Qxc3 {[%clk 0:00:07]}  dxc3 {[%clk 0:00:23]} 0-1


[Site "https://www.chess.com"]

[Event "Titled Tuesday Blitz May 9 Late 2023"]
[White "Gerbelli Neto, Eduardo"]
[Black "Bambino Filho, Antonio Carlos"]
[WhiteFideId "2103281"]
[BlackFideId "2113163"]
[WhiteElo "2178"]
[BlackElo "2465"]
[Result "1-0"]
[Round "11"]
[TimeControl "180+2"]
[Date "2023.05.09"]
[WhiteClock "0:02:13"]
[BlackClock "0:01:28"]

1. e4 {[%clk 0:03:00]}  c5 {[%clk 0:02:59]} 2. Nc3 {[%clk 0:03:00]}  e6 {[%clk 0:02:59]} 3. f4 {[%clk 0:03:01]}  d5 {[%clk 0:02:59]} 4. Nf3 {[%clk 0:02:59]}  dxe4 {[%clk 0:02:59]} 5. Bb5+ {[%clk 0:02:59]}  Nd7 {[%clk 0:02:58]} 6. Nxe4 {[%clk 0:02:58]}  Be7 {[%clk 0:02:58]} 7. O-O {[%clk 0:02:56]}  Nf6 {[%clk 0:02:59]} 8. d3 {[%clk 0:02:55]}  a6 {[%clk 0:02:56]} 9. Bc4 {[%clk 0:02:49]}  Nb6 {[%clk 0:02:54]} 10. Bb3 {[%clk 0:02:49]}  Nxe4 {[%clk 0:02:54]} 11. dxe4 {[%clk 0:02:50]}  Qxd1 {[%clk 0:02:54]} 12. Rxd1 {[%clk 0:02:48]}  Bd7 {[%clk 0:02:34]} 13. Ne5 {[%clk 0:02:41]}  Rd8 {[%clk 0:02:30]} 14. Be3 {[%clk 0:02:39]}  Nc8 {[%clk 0:01:59]} 15. f5 {[%clk 0:02:18]}  Bd6 {[%clk 0:01:34]} 16. Nxd7 {[%clk 0:02:12]}  Kxd7 {[%clk 0:01:28]} 17. e5 {[%clk 0:02:13]} 1-0


[Site "https://www.chess.com"]

[Event "Titled Tuesday Blitz May 9 Late 2023"]
[White "marik_spb"]
[Black "Ardila, Oscar Humberto"]
[BlackFideId "4404742"]
[WhiteElo "2439"]
[BlackElo "1918"]
[Result "1-0"]
[Round "11"]
[TimeControl "180+2"]
[Date "2023.05.09"]
[WhiteClock "0:00:49"]
[BlackClock "0:01:51"]

1. e4 {[%clk 0:02:37]}  e5 {[%clk 0:02:58]} 2. Nf3 {[%clk 0:02:37]}  Nf6 {[%clk 0:02:58]} 3. Nxe5 {[%clk 0:02:37]}  d6 {[%clk 0:02:58]} 4. Nf3 {[%clk 0:02:36]}  Nxe4 {[%clk 0:02:58]} 5. d4 {[%clk 0:02:36]}  Be7 {[%clk 0:02:58]} 6. Bd3 {[%clk 0:02:37]}  Nf6 {[%clk 0:02:59]} 7. c4 {[%clk 0:02:36]}  Bg4 {[%clk 0:02:58]} 8. h3 {[%clk 0:02:35]}  Bh5 {[%clk 0:02:58]} 9. Be3 {[%clk 0:02:33]}  O-O {[%clk 0:02:58]} 10. Nbd2 {[%clk 0:02:28]}  Nbd7 {[%clk 0:02:58]} 11. Qc2 {[%clk 0:02:28]}  Re8 {[%clk 0:02:57]} 12. g4 {[%clk 0:02:26]}  Bg6 {[%clk 0:02:57]} 13. a3 {[%clk 0:02:22]}  c6 {[%clk 0:02:56]} 14. Bxg6 {[%clk 0:02:12]}  hxg6 {[%clk 0:02:56]} 15. O-O-O {[%clk 0:02:06]}  b5 {[%clk 0:02:54]} 16. Rdg1 {[%clk 0:02:04]}  bxc4 {[%clk 0:02:51]} 17. Nxc4 {[%clk 0:02:05]}  Nb6 {[%clk 0:02:51]} 18. h4 {[%clk 0:02:03]}  Nxc4 {[%clk 0:02:43]} 19. Qxc4 {[%clk 0:02:04]}  d5 {[%clk 0:02:44]} 20. Qc2 {[%clk 0:01:59]}  Qd7 {[%clk 0:02:43]} 21. h5 {[%clk 0:01:55]}  Ne4 {[%clk 0:02:41]} 22. hxg6 {[%clk 0:01:51]}  fxg6 {[%clk 0:02:41]} 23. Ne5 {[%clk 0:01:51]}  Qe6 {[%clk 0:02:41]} 24. f3 {[%clk 0:01:50]}  Bg5 {[%clk 0:02:21]} 25. Bxg5 {[%clk 0:01:41]}  Nxg5 {[%clk 0:02:22]} 26. Nxg6 {[%clk 0:01:24]}  Nxf3 {[%clk 0:02:11]} 27. Rf1 {[%clk 0:01:10]}  Qe3+ {[%clk 0:02:06]} 28. Kb1 {[%clk 0:00:54]}  Nd2+ {[%clk 0:01:55]} 29. Qxd2 {[%clk 0:00:49]}  Qxd2 {[%clk 0:01:51]} 30. Rh8# {[%clk 0:00:49]} 1-0


[Site "https://www.chess.com"]

[Event "Titled Tuesday Blitz May 9 Late 2023"]
[White "Bryant, Todd"]
[Black "Shapiro, Daniel"]
[WhiteFideId "2031299"]
[BlackFideId "2001780"]
[WhiteElo "2358"]
[BlackElo "2353"]
[Result "0-1"]
[Round "11"]
[TimeControl "180+2"]
[Date "2023.05.09"]
[WhiteClock "0:00:00"]
[BlackClock "0:00:20"]

1. e4 {[%clk 0:03:00]}  e5 {[%clk 0:02:57]} 2. f4 {[%clk 0:03:00]}  exf4 {[%clk 0:02:54]} 3. Nf3 {[%clk 0:03:01]}  d6 {[%clk 0:02:53]} 4. Nc3 {[%clk 0:03:01]}  h6 {[%clk 0:02:48]} 5. g3 {[%clk 0:02:59]}  fxg3 {[%clk 0:02:42]} 6. hxg3 {[%clk 0:02:59]}  c6 {[%clk 0:02:36]} 7. d4 {[%clk 0:02:59]}  Nf6 {[%clk 0:02:27]} 8. Be3 {[%clk 0:02:58]}  Ng4 {[%clk 0:02:24]} 9. Bg1 {[%clk 0:02:47]}  Nd7 {[%clk 0:02:15]} 10. Qd2 {[%clk 0:02:43]}  Qf6 {[%clk 0:02:12]} 11. Be2 {[%clk 0:02:36]}  Nb6 {[%clk 0:02:06]} 12. O-O-O {[%clk 0:02:31]}  Be6 {[%clk 0:01:59]} 13. d5 {[%clk 0:02:16]}  Bd7 {[%clk 0:01:53]} 14. Bd4 {[%clk 0:02:10]}  Ne5 {[%clk 0:01:53]} 15. Nxe5 {[%clk 0:02:00]}  dxe5 {[%clk 0:01:50]} 16. dxc6 {[%clk 0:01:55]}  Bxc6 {[%clk 0:01:39]} 17. Bxb6 {[%clk 0:01:15]}  axb6 {[%clk 0:01:35]} 18. Nb5 {[%clk 0:01:13]}  Bc5 {[%clk 0:01:16]} 19. Nc7+ {[%clk 0:01:03]}  Ke7 {[%clk 0:01:15]} 20. Nxa8 {[%clk 0:00:52]}  Rxa8 {[%clk 0:01:15]} 21. Kb1 {[%clk 0:00:45]}  Bxe4 {[%clk 0:01:08]} 22. Qd7+ {[%clk 0:00:44]}  Kf8 {[%clk 0:01:08]} 23. Rhf1 {[%clk 0:00:36]}  Qe7 {[%clk 0:01:03]} 24. Bc4 {[%clk 0:00:26]}  f6 {[%clk 0:00:59]} 25. Qb5 {[%clk 0:00:15]}  Bd4 {[%clk 0:00:54]} 26. Qb3 {[%clk 0:00:13]}  Rd8 {[%clk 0:00:46]} 27. Rde1 {[%clk 0:00:11]}  Bg6 {[%clk 0:00:43]} 28. Bd3 {[%clk 0:00:10]}  Bf7 {[%clk 0:00:42]} 29. Bc4 {[%clk 0:00:09]}  Bg6 {[%clk 0:00:42]} 30. Bd3 {[%clk 0:00:09]}  e4 {[%clk 0:00:35]} 31. Bc4 {[%clk 0:00:06]}  Qe5 {[%clk 0:00:30]} 32. Ka1 {[%clk 0:00:05]}  e3 {[%clk 0:00:28]} 33. Bd3 {[%clk 0:00:04]}  Bf7 {[%clk 0:00:27]} 34. Bc4 {[%clk 0:00:03]}  Bxb2+ {[%clk 0:00:25]} 35. Kb1 {[%clk 0:00:03]}  Bxc4 {[%clk 0:00:22]} 36. Qxc4 {[%clk 0:00:04]}  Ba3 {[%clk 0:00:21]} 37. Qb3 {[%clk 0:00:04]}  Bc5 {[%clk 0:00:20]} 38. Re2 {[%clk 0:00:00]}  Rd4 {[%clk 0:00:20]} 0-1


[Site "https://www.chess.com"]